bitfinex/quotes_ETHUSD_20240916
["timestamp","ask_amount","ask_price","bid_price","bid_amount"]
[1726502604949,0.91401165,2295.3,2295.1,4.35706]
[1726502605112,0.91401165,2295.3,2295.2,0.06544509]
[1726502605308,7.41244064,2295.3,2295.2,0.06544509]
[1726502605645,9.23616335,2295.3,2295.0,4.35725]
[1726502605809,1.94943808,2295.2,2295.0,4.35725]
[1726502608135,0.91130909,2295.1,2295.0,4.35725]
[1726502608448,1.95053126,2295.1,2295.0,4.35725]
[1726502608746,1.95053126,2295.1,2295.0,4.42274855]
[1726502609749,1.95186843,2295.1,2295.0,4.42274855]
[1726502610567,2.41187179,2295.1,2295.0,4.42274855]
[1726502612929,2.41304738,2295.1,2295.0,4.42274855]
[1726502614327,2.41304738,2295.1,2295.0,9.80372841]
[1726502614328,1.95345616,2295.1,2295.0,9.80372841]
[1726502614639,0.9130584,2295.3,2295.2,10.17062]
[1726502614858,1.95347564,2295.3,2295.2,11.62994185]
[1726502615170,4.79547368,2295.3,2295.2,0.06493949]
[1726502615464,4.79547368,2295.3,2295.0,4.35729]
[1726502615674,1.82646326,2295.1,2295.0,4.35729]
[1726502615871,4.25473694,2295.1,2294.9,5.81427]
[1726502616029,2.41067539,2295.0,2294.9,5.81427]
[1726502616227,1.36998667,2295.0,2294.9,5.81427]
[1726502616925,2.41067539,2295.0,2294.9,11.188931]
[1726502617120,1.36998667,2295.0,2294.9,10.17175]
[1726502617563,2.41106179,2295.0,2294.9,10.17175]
[1726502618462,1.36998667,2295.0,2294.9,11.188925]
[1726502618869,0.91361883,2295.0,2294.9,11.188925]
[1726502619570,1.36998667,2295.0,2294.9,11.188925]
[1726502619745,1.36998667,2295.0,2294.9,10.17175]
[1726502620067,2.41106179,2295.0,2294.9,10.17175]
[1726502620368,1.36998667,2295.0,2294.9,10.17175]
[1726502620871,2.41106179,2295.0,2294.9,10.17175]
[1726502621055,1.36998667,2295.0,2294.9,10.17175]
[1726502621768,2.41106179,2295.0,2294.9,10.17175]
[1726502621976,1.82646326,2295.1,2294.6,4.35804]
[1726502621977,4.07896326,2295.1,2294.8,4.35751]
[1726502622284,2.28385092,2295.2,2294.4,4.35842]
[1726502622285,2.2525,2294.8,2294.4,4.35842]
[1726502622566,0.91377786,2294.6,2294.4,4.35842]
[1726502623267,0.91377786,2294.6,2294.5,4.35824]
[1726502623645,0.91377786,2294.6,2294.5,4.42272244]
[1726502625152,0.91377786,2294.6,2294.5,8.78096244]
[1726502625345,1.3706668,2294.7,2294.6,4.35805]
[1726502625739,1.04511253,2294.7,2294.6,4.4225057]
[1726502625935,1.04511253,2294.7,2294.6,5.8793057]
[1726502626161,0.91373579,2294.7,2294.6,5.8793057]
[1726502626376,1.95884832,2294.7,2294.6,11.26111027]
[1726502626557,0.91373579,2294.9,2294.6,5.9664584]
[1726502626873,0.91373579,2294.9,2294.8,8.71534]
[1726502627248,0.91373579,2294.9,2294.8,8.77974223]
[1726502627438,1.95874785,2294.9,2294.8,8.77974223]
[1726502630602,1.95874785,2294.9,2294.8,10.23654223]
[1726502630778,1.95874785,2294.9,2294.8,11.75564704]
[1726502631102,0.91373579,2295.0,2294.9,8.71496]
[1726502631503,0.91373579,2295.0,2294.9,8.77933549]
[1726502631809,1.3706668,2295.1,2295.0,4.35729]
[1726502632166,1.3706668,2295.1,2295.0,4.42163876]
[1726502632473,1.82755573,2295.1,2295.0,4.42163876]
[1726502634419,1.82755573,2295.1,2295.0,0.06434876]
[1726502634707,2.87285745,2295.1,2295.0,4.42163876]
[1726502635004,1.82755573,2295.1,2295.0,4.42163876]
[1726502635367,4.26659308,2295.1,2295.0,4.42163876]
[1726502635568,2.41639582,2295.1,2295.0,4.42163876]
[1726502635978,4.24422762,2295.1,2295.0,8.77892876]
[1726502636179,4.24422762,2295.1,2295.0,11.11362164]
[1726502636180,2.41637431,2295.1,2295.0,11.11362164]
[1726502636503,2.39956609,2295.1,2295.0,11.11362164]
[1726502638471,2.39956609,2295.1,2295.0,10.23572876]
[1726502639010,2.39956609,2295.1,2295.0,8.77892876]
[1726502640513,2.85604923,2295.1,2295.0,8.77892876]
[1726502641131,1.82755573,2295.1,2295.0,4.42163876]
[1726502641281,2.85604923,2295.1,2295.0,4.42163876]
[1726502641488,4.68542883,2295.1,2295.0,8.77892876]
[1726502641683,4.22988398,2295.1,2295.0,9.80250164]
[1726502641924,2.85802259,2295.1,2295.0,9.80250164]
[1726502642224,2.40058691,2295.1,2295.0,9.73815288]
[1726502642383,1.0284935,2295.1,2295.0,9.73815288]
[1726502642583,2.85802259,2295.1,2295.0,9.80253428]
[1726502642783,2.40085392,2295.1,2295.0,9.80253428]
[1726502643107,1.37236042,2295.1,2295.0,9.80253428]
[1726502643481,2.40085392,2295.1,2295.0,9.80253428]
[1726502643682,2.40085392,2295.1,2295.0,15.61662428]
[1726502643914,1.82952909,2295.3,2295.2,8.71382]
[1726502644133,2.85926561,2295.3,2295.2,13.07073]
[1726502644340,2.40238531,2295.3,2295.2,13.13505794]
[1726502644503,2.40330415,2295.3,2295.2,14.85276727]
[1726502644695,2.40283033,2295.3,2295.2,14.85276727]
[1726502644892,4.23263563,2295.3,2295.2,10.49585727]
[1726502645093,2.40281779,2295.3,2295.2,10.49585727]
[1726502645428,2.85942409,2295.3,2295.2,10.49585727]
[1726502645994,4.23260292,2295.3,2295.2,10.49585727]
[1726502646188,2.85942409,2295.3,2295.2,10.49585727]
[1726502646852,2.40299958,2295.3,2295.2,10.49585727]
[1726502647238,4.2327957,2295.3,2295.2,10.49585727]
[1726502647847,2.40283551,2295.3,2295.2,10.49585727]
[1726502649212,2.40283551,2295.3,2295.2,11.95265727]
[1726502649418,0.03553844,2295.5,2295.4,1.4568]
[1726502649616,0.03553844,2295.5,2295.4,32.56442565]
[1726502649851,0.03553844,2295.5,2295.4,33.23630222]
[1726502650062,0.03553844,2295.5,2295.4,33.23629631]
[1726502650365,0.03553844,2295.5,2295.4,31.84070528]
[1726502663591,0.0383088,2296.2,2296.1,13.06563]
[1726502663962,0.0383088,2296.2,2296.1,13.12817755]
[1726502664784,2.4444088,2296.2,2296.1,13.12817755]
[1726502667711,2.4444088,2296.2,2296.1,4.41775755]
[1726502671308,5.4444088,2296.2,2296.1,0.06254755]
[1726502671511,10.95891434,2296.2,2296.1,0.06254755]
[1726502671698,3.0,2296.0,2295.6,4.35615]
[1726502672034,3.0,2296.0,2294.9,1.5193]
[1726502672035,2.4816,2295.8,2295.3,4.35659]
[1726502672185,2.4816,2295.8,2294.7,12.4]
[1726502672186,7.35578,2295.8,2295.7,0.05641578]
[1726502672520,7.35578,2295.8,2294.9,4.35735]
[1726502672521,2.4659,2295.3,2294.9,4.35735]
[1726502672725,2.4659,2295.3,2295.0,4.35717]
[1726502672946,2.4659,2295.3,2295.0,0.0509533]
[1726502673148,2.4659,2295.3,2295.0,4.4082033]
[1726502673646,2.4659,2295.3,2295.0,0.0509533]
[1726502673806,2.2536,2295.2,2295.0,0.0509533]
[1726502675409,3.0,2295.2,2295.0,0.0509533]
[1726502675708,2.4609,2295.1,2294.6,4.35792]
[1726502676150,2.4609,2295.0,2294.6,4.35792]
[1726502676910,5.4609,2295.0,2294.6,4.35792]
[1726502677414,9.81819,2295.0,2294.5,8.71628]
[1726502677625,2.4609,2294.9,2294.5,4.35813]
[1726502678121,2.4609,2294.9,2294.6,4.35796]
[1726502679308,2.4609,2294.9,2294.7,0.05148939]
[1726502679657,3.70228539,2294.9,2294.4,4.35828]
[1726502679809,2.4609,2294.9,2294.8,0.05146266]
[1726502680010,2.4609,2294.9,2294.5,4.35813]
[1726502680234,2.4609,2294.9,2294.6,4.40955613]
[1726502681435,3.53379017,2294.9,2294.6,4.40955613]
[1726502681916,3.53379017,2294.9,2294.6,0.05151613]
[1726502682740,3.53379017,2294.9,2294.6,4.40955613]
[1726502683427,3.53379017,2294.9,2294.6,0.05151613]
[1726502683951,2.4084,2294.8,2294.6,0.05151613]
[1726502684828,3.49226502,2294.8,2294.6,0.05151613]
[1726502685033,3.49226502,2294.8,2294.5,4.35824]
[1726502685351,2.4084,2294.8,2294.6,0.05294102]
[1726502686749,2.4084,2294.8,2294.4,8.7166]
[1726502687061,7.35776,2294.8,2294.7,0.05123942]
[1726502687233,8.470083,2294.8,2294.3,4.35853]
[1726502687422,8.470083,2294.8,2294.7,0.05123942]
[1726502687753,2.3011,2294.6,2294.3,4.35853]
[1726502688062,2.3011,2294.6,2294.1,8.71778]
[1726502688063,2.3011,2294.5,2294.1,8.71778]
[1726502689661,6.65937,2294.5,2294.1,4.35887]
[1726502689831,2.4994,2294.3,2293.9,4.35923]
[1726502690030,2.4994,2294.3,2293.6,7.46]
[1726502690031,2.2609,2294.2,2293.8,4.35941]
[1726502690425,2.2609,2294.2,2293.9,4.35937]
[1726502690843,2.2609,2294.2,2294.0,4.35919]
[1726502691763,2.2609,2294.2,2293.8,4.35939]
[1726502691966,2.2609,2294.2,2293.9,4.35928]
[1726502692754,2.2609,2294.2,2293.8,4.35939]
[1726502692922,2.2609,2294.2,2293.9,4.35938]
[1726502693258,2.2609,2294.2,2293.8,4.35939]
[1726502693259,2.2609,2294.2,2294.0,4.35917]
[1726502694666,2.2609,2294.2,2294.1,4.359]
[1726502694869,2.3361,2294.5,2294.2,8.71742]
[1726502695025,2.3361,2294.5,2294.2,4.3587]
[1726502695227,2.3361,2294.5,2294.2,8.71741]
[1726502695844,2.3361,2294.5,2294.2,4.3587]
[1726502697460,2.3361,2294.5,2294.2,8.71741]
[1726502697658,2.3361,2294.5,2294.2,4.3587]
[1726502698833,2.3361,2294.5,2294.3,0.05231604]
[1726502699236,2.3361,2294.5,2294.2,4.3587]
[1726502699458,2.3361,2294.5,2294.4,0.0522893]
[1726502700038,2.3361,2294.5,2294.2,4.3587]
[1726502700239,2.3361,2294.5,2294.4,0.0522893]
[1726502700460,2.3361,2294.5,2294.3,0.05231604]
[1726502700461,6.305499,2294.5,2294.3,0.05231604]
[1726502700664,5.3361,2294.5,2294.4,0.0522893]
[1726502700980,5.3361,2294.5,2294.1,4.35898]
[1726502701284,10.663757,2294.5,2294.4,0.0522893]
[1726502701592,10.663757,2294.5,2294.0,4.35906]
[1726502701593,5.3149,2294.4,2294.0,4.35906]
[1726502701749,4.3589,2294.2,2293.4,5.9177588]
[1726502701940,2.3149,2294.0,2293.6,4.35985]
[1726502702287,2.3149,2294.0,2293.7,4.35976]
[1726502703388,2.3149,2294.0,2293.4,0.0383088]
[1726502703553,2.343,2294.2,2293.5,4.36013]
[1726502703877,2.343,2293.9,2293.4,4.3984788]
[1726502704078,6.70248,2293.9,2293.4,4.3984788]
[1726502704297,2.343,2293.8,2293.4,4.3984788]
[1726502704504,2.343,2293.8,2293.4,0.0383088]
[1726502704505,4.35976,2293.7,2293.4,0.0383088]
[1726502704783,2.343,2293.6,2293.4,0.0383088]
[1726502704984,2.343,2293.6,2293.4,4.3985388]
[1726502705196,2.343,2293.8,2293.5,4.36004]
[1726502705374,2.343,2293.8,2293.7,4.35976]
[1726502705576,2.343,2293.9,2293.7,4.35976]
[1726502706101,6.622872,2294.1,2293.8,4.35957]
[1726502706389,5.343,2294.1,2293.7,4.35975]
[1726502706593,1.4022872,2294.0,2293.6,4.35992]
[1726502707011,1.4022872,2294.0,2293.7,4.35974]
[1726502707174,5.343,2294.1,2293.8,4.35956]
[1726502708196,5.343,2294.1,2293.7,4.35963]
[1726502708407,5.343,2294.1,2293.9,0.05122794]
[1726502708564,6.749054,2294.1,2293.8,0.0512547]
[1726502708767,6.749054,2294.1,2293.7,4.35963]
[1726502708768,5.343,2294.1,2293.7,4.35963]
[1726502708967,5.343,2294.1,2293.9,0.05122794]
[1726502709197,5.343,2294.1,2293.7,4.35963]
[1726502709409,11.108064,2294.1,2294.0,0.05120118]
[1726502709712,11.108064,2294.1,2293.6,4.35977]
[1726502710064,11.108064,2294.1,2294.0,0.05105454]
[1726502710268,11.108064,2294.1,2293.6,4.35977]
[1726502710480,1.5466884,2294.0,2293.6,4.35977]
[1726502710683,1.5466884,2294.0,2293.7,0.05113482]
[1726502712286,3.0,2293.9,2293.7,0.05113482]
[1726502712490,4.5466884,2294.0,2293.7,0.05113482]
[1726502712698,5.4798,2293.9,2293.7,0.05113482]
[1726502713575,9.83928,2293.9,2293.7,0.05113482]
[1726502713782,4.3599,2293.7,2293.4,0.0383088]
[1726502714012,2.383,2293.5,2293.4,0.0383088]
[1726502714244,14.10328,2293.5,2293.4,0.0383088]
[1726502714590,15.01392166,2293.5,2293.4,0.0383088]
[1726502715297,14.10328,2293.5,2293.4,0.0383088]
[1726502715645,19.37406166,2293.5,2293.4,0.0383088]
[1726502715842,22.18101698,2293.5,2293.4,0.0383088]
[1726502716698,17.27087698,2293.5,2293.4,0.0383088]
[1726502717199,16.36023532,2293.5,2293.4,0.0383088]
[1726502717400,17.27087698,2293.5,2293.4,0.0383088]
[1726502717600,12.00009532,2293.5,2293.4,0.0383088]
[1726502719645,16.36023532,2293.5,2293.4,0.0383088]
[1726502720050,17.2679811,2293.5,2293.4,0.0383088]
[1726502720413,12.9078411,2293.5,2293.4,0.0383088]
[1726502720613,17.2679811,2293.5,2293.4,0.0383088]
[1726502720810,12.00009532,2293.5,2293.4,0.0383088]
[1726502721233,16.36023532,2293.5,2293.4,0.09076239]
[1726502721438,16.36023532,2293.5,2293.4,0.0383088]
[1726502721624,12.00009532,2293.5,2293.4,0.0383088]
[1726502722154,16.36023532,2293.5,2293.4,0.0383088]
[1726502722459,16.36023532,2293.5,2293.4,0.09076239]
[1726502722626,16.36023532,2293.5,2293.4,0.0383088]
[1726502722948,17.2679811,2293.5,2293.4,0.0383088]
[1726502723147,12.00009532,2293.5,2293.4,0.0383088]
[1726502723945,12.00009532,2293.5,2293.4,0.09076239]
[1726502724657,12.00009532,2293.5,2293.4,0.0383088]
[1726502724811,12.00009532,2293.5,2293.4,0.09076239]
[1726502725705,12.00009532,2293.5,2293.4,0.0383088]
[1726502726139,17.2679811,2293.5,2293.4,0.0383088]
[1726502726348,12.9078411,2293.5,2293.4,0.0383088]
[1726502726645,16.36023532,2293.5,2293.4,0.0383088]
[1726502726832,17.2679811,2293.5,2293.4,0.0383088]
[1726502727838,17.72619781,2293.5,2293.4,0.0383088]
[1726502728146,18.18197622,2293.5,2293.4,0.0383088]
[1726502730012,20.47380559,2293.5,2293.4,0.0383088]
[1726502730420,24.83407955,2293.5,2293.4,0.0383088]
[1726502730755,20.47393955,2293.5,2293.4,0.0383088]
[1726502732415,20.46080524,2293.5,2293.4,0.0383088]
[1726502732752,24.82124231,2293.5,2293.4,0.0383088]
[1726502732960,20.91403038,2293.5,2293.4,0.0383088]
[1726502733663,25.27417038,2293.5,2293.4,0.0383088]
[1726502735465,23.00455046,2293.5,2293.4,0.0383088]
[1726502735668,28.96377034,2293.5,2293.4,0.00566824]
[1726502735967,28.96377034,2293.5,2292.7,0.0383088]
[1726502735968,14.06094,2292.8,2292.7,0.0383088]
[1726502736966,14.96875795,2292.8,2292.7,0.0383088]
[1726502737168,3.0,2292.8,2292.7,0.0383088]
[1726502737368,4.36147,2292.8,2292.7,0.0383088]
[1726502737575,7.36147,2292.8,2292.7,0.0383088]
[1726502737864,15.79921095,2292.8,2292.7,0.0383088]
[1726502738627,15.79863491,2292.8,2292.7,0.0383088]
[1726502738831,16.25310846,2292.8,2292.7,0.0383088]
[1726502739072,16.80310846,2292.8,2292.7,0.0383088]
[1726502739235,21.16457846,2292.8,2292.7,0.0383088]
[1726502739567,21.08069403,2292.8,2292.7,0.0383088]
[1726502739769,25.44216403,2292.8,2292.7,0.0383088]
[1726502740433,25.44216403,2292.8,2292.0,0.0383088]
[1726502740434,6.73801,2292.1,2292.0,0.0383088]
[1726502740759,14.10082,2292.1,2292.0,0.0383088]
[1726502741466,19.370271,2292.1,2292.0,0.0383088]
[1726502741634,19.920271,2292.1,2292.0,0.0383088]
[1726502741981,15.007461,2292.1,2292.0,0.0383088]
[1726502742192,21.44326425,2292.1,2292.0,0.0383088]
[1726502742333,16.17381325,2292.1,2292.0,0.0383088]
[1726502743078,16.17381325,2292.1,2292.0,0.25781832]
[1726502743236,4.36272,2292.2,2292.0,0.0383088]
[1726502743437,4.36272,2292.2,2292.0,0.25781832]
[1726502743438,3.0,2292.1,2292.0,0.25781832]
[1726502743744,0.45584965,2292.3,2292.0,0.25781832]
[1726502744269,4.81836965,2292.3,2292.0,0.25781832]
[1726502744456,0.45584965,2292.3,2292.0,0.25781832]
[1726502745280,3.0,2292.1,2292.0,0.25781832]
[1726502745433,7.36281,2292.1,2292.0,0.25781832]
[1726502745633,7.36263,2292.2,2292.0,0.25781832]
[1726502745957,3.45584965,2292.3,2292.0,0.25781832]
[1726502746159,0.45584965,2292.3,2292.0,5.23922615]
[1726502746331,3.0,2292.4,2292.1,5.92608]
[1726502746538,0.906641,2292.5,2292.2,0.20998226]
[1726502746874,5.72421227,2292.7,2292.4,1.5633]
[1726502747046,4.81757127,2292.7,2292.4,1.5633]
[1726502747249,4.81757127,2292.7,2292.5,0.20979878]
[1726502747455,0.45590127,2292.7,2292.5,0.20979878]
[1726502747870,3.0,2292.6,2292.5,0.20979878]
[1726502748101,0.45590127,2292.7,2292.5,0.20979878]
[1726502748303,1.3599615,2292.9,2292.5,5.18525266]
[1726502748304,0.906641,2292.9,2292.5,5.18525266]
[1726502748599,0.906641,2293.1,2292.8,1.5633]
[1726502748900,5.72327812,2293.2,2292.8,1.5633]
[1726502749086,10.08410812,2293.2,2292.9,0.20929584]
[1726502749267,5.72327812,2293.2,2292.8,1.5633]
[1726502749463,5.72327812,2293.2,2293.0,0.2092619]
[1726502749464,10.08413812,2293.2,2293.0,0.2092619]
[1726502749664,3.906641,2293.1,2292.9,0.20929584]
[1726502749870,3.906641,2293.1,2292.8,1.5633]
[1726502750595,8.267571,2293.1,2292.6,1.5633]
[1726502751194,0.906641,2293.0,2292.6,1.5633]
[1726502752092,7.04998188,2293.0,2292.6,1.5633]
[1726502752265,3.0,2292.6,2292.1,5.9261]
[1726502752466,3.0,2292.6,2292.1,1.5633]
[1726502752804,3.0,2292.2,2292.0,0.0383088]
[1726502753506,3.906641,2292.2,2292.0,0.0383088]
[1726502753665,7.36281,2292.1,2292.0,0.0383088]
[1726502753861,3.906641,2292.2,2292.0,0.0383088]
[1726502754109,9.41360245,2292.2,2292.0,0.0383088]
[1726502754420,8.269451,2292.1,2292.0,0.0383088]
[1726502755270,8.27015079,2292.1,2292.0,0.0383088]
[1726502755680,8.7227715,2292.1,2292.0,0.0383088]
[1726502756215,15.5078815,2292.1,2292.0,0.0383088]
[1726502756511,17.35504243,2292.1,2292.0,0.0383088]
[1726502756811,19.09037936,2292.1,2292.0,0.0383088]
[1726502758003,4.36098811,2292.1,2292.0,0.0383088]
[1726502758176,3.0,2292.1,2292.0,0.0383088]
[1726502758372,4.36098811,2292.1,2292.0,0.0383088]
[1726502758616,3.90747992,2292.1,2292.0,0.0383088]
[1726502758796,3.90747992,2292.1,2292.0,0.24139281]
[1726502759690,0.90747992,2292.1,2292.0,0.24139281]
[1726502760089,3.90747992,2292.2,2292.0,0.24139281]
[1726502760289,0.90747992,2292.1,2292.0,0.24139281]
[1726502760977,0.90747992,2292.3,2292.0,4.60439281]
[1726502761173,0.90747992,2292.3,2292.0,8.96730281]
[1726502761377,1.36098811,2292.4,2292.0,4.60428281]
[1726502761378,0.90747992,2292.4,2292.0,4.60428281]
[1726502761723,0.90747992,2292.4,2292.1,4.3628]
[1726502761874,0.90747992,2292.4,2292.2,4.36259]
[1726502762080,0.90747992,2292.4,2292.2,4.56546736]
[1726502763024,0.90747992,2292.5,2292.2,4.56546736]
[1726502763322,0.90747992,2292.4,2292.2,4.56546736]
[1726502764080,0.90747992,2292.4,2292.2,0.20287736]
[1726502764984,0.90747992,2292.4,2292.3,0.20261494]
[1726502765212,0.90747992,2292.4,2292.1,4.36277]
[1726502765387,0.90747992,2292.4,2292.3,0.20261494]
[1726502765593,0.90747992,2292.4,2292.1,4.36277]
[1726502765785,0.90747992,2292.4,2292.3,0.20261494]
[1726502765985,0.90747992,2292.4,2292.1,4.36277]
[1726502766323,0.90747992,2292.4,2292.3,1.76591494]
[1726502766487,0.90747992,2292.4,2292.3,1.5633]
[1726502766682,0.90747992,2292.4,2292.3,1.76569462]
[1726502767136,0.90747992,2292.6,2292.5,1.5633]
[1726502767356,0.90747992,2292.8,2292.6,4.36185]
[1726502767657,0.90747992,2292.9,2292.7,4.5638862]
[1726502768224,8.30747992,2293.0,2292.7,4.5638862]
[1726502768521,0.90747992,2293.1,2292.9,4.36128]
[1726502768828,0.90747992,2293.1,2293.0,0.20187967]
[1726502769029,1.36098811,2293.1,2292.8,10.28602]
[1726502769215,0.9087956,2293.0,2292.8,10.28602]
[1726502769744,0.9087956,2293.0,2292.8,10.28605]
[1726502770368,0.9087956,2293.0,2292.8,5.92466]
[1726502770587,0.9087956,2292.9,2292.7,4.36166]
[1726502770871,0.9087956,2293.0,2292.7,4.36166]
[1726502771482,0.9087956,2292.9,2292.6,10.28679]
[1726502771851,0.9087956,2292.9,2292.6,5.92503]
[1726502772175,0.9087956,2292.9,2292.7,4.36158]
[1726502772877,0.9087956,2292.9,2292.6,1.5633]
[1726502773077,8.72210811,2293.0,2292.6,5.92512]
[1726502773078,0.9087956,2292.8,2292.6,5.92512]
[1726502773584,0.9087956,2292.9,2292.6,5.92512]
[1726502773740,0.9087956,2292.8,2292.6,1.5633]
[1726502773941,0.9087956,2292.8,2292.6,5.92507]
[1726502774145,0.9087956,2292.8,2292.7,4.56347838]
[1726502774369,0.9087956,2292.9,2292.8,4.36147]
[1726502774579,0.9087956,2293.0,2292.8,4.56332783]
[1726502774942,0.9087956,2292.9,2292.8,0.20185783]
[1726502775138,0.9087956,2292.9,2292.7,4.36166]
[1726502775339,0.9087956,2293.0,2292.8,0.20185783]
[1726502775594,4.36098811,2293.1,2292.7,8.72316]
[1726502775595,0.9087956,2292.9,2292.7,8.72316]
[1726502775884,0.9087956,2293.0,2292.9,0.20182389]
[1726502776087,0.9087956,2293.0,2292.8,0.20185783]
[1726502776252,1.36098811,2293.0,2292.9,0.20182389]
[1726502776457,5.64198503,2293.1,2292.7,8.72315]
[1726502776795,5.64198503,2293.1,2292.6,1.5633]
[1726502776796,1.36098811,2292.8,2292.6,1.5633]
[1726502777082,1.36098811,2292.8,2292.1,1.5633]
[1726502777083,4.36205,2292.5,2292.1,1.5633]
[1726502777379,0.91006859,2292.4,2292.1,1.5633]
[1726502777580,0.91006859,2292.4,2292.1,5.92611]
[1726502777803,3.91006859,2292.4,2292.1,1.5633]
[1726502778107,0.91006859,2292.3,2292.1,1.5633]
[1726502778299,0.91006859,2292.3,2292.0,0.0383088]
[1726502778445,0.91006859,2292.2,2292.0,4.4012488]
[1726502779700,0.91006859,2292.3,2292.2,4.36262]
[1726502779913,0.91006859,2292.4,2292.2,4.36262]
[1726502780373,0.91006859,2292.4,2292.3,4.36243]
[1726502780716,0.91006859,2292.5,2292.4,4.36224]
[1726502781008,1.36510289,2292.6,2292.4,4.36224]
[1726502781009,0.91006859,2292.6,2292.4,4.36224]
[1726502781209,0.91006859,2292.6,2292.4,4.36213]
[1726502781365,0.91006859,2292.6,2292.4,8.72427]
[1726502781564,0.91006859,2292.6,2292.5,4.36205]
[1726502782730,0.91006859,2292.6,2292.5,8.7241]
[1726502782934,0.91006859,2292.7,2292.6,8.7237]
[1726502783533,0.91006859,2292.7,2292.6,4.36185]
[1726502784793,0.91006859,2292.7,2292.5,5.92533]
[1726502784993,0.91006859,2292.7,2292.6,4.36185]
[1726502785732,0.91006859,2292.7,2292.6,8.7237]
[1726502785931,0.91006859,2292.8,2292.7,4.36166]
[1726502786737,0.91006859,2292.8,2292.7,8.72332]
[1726502787039,0.91006859,2292.8,2292.7,4.36166]
[1726502788302,0.910394,2292.8,2292.7,4.36166]
[1726502788921,0.910394,2292.8,2292.7,4.56301346]
[1726502789119,3.10041583,2292.8,2292.7,0.20135346]
[1726502789322,3.80929372,2292.8,2292.7,0.20135346]
[1726502789935,3.80929372,2292.8,2292.4,4.36211]
[1726502790137,2.52215989,2292.8,2292.7,0.20135346]
[1726502790432,3.80947191,2292.8,2292.4,4.36211]
[1726502790602,0.91046119,2292.6,2292.4,4.36211]
[1726502791238,0.91046119,2292.5,2292.2,4.36245]
[1726502791537,0.91046119,2292.4,2292.1,5.92602]
[1726502791896,0.91046119,2292.3,2292.1,1.5633]
[1726502792534,0.91046119,2292.3,2292.1,5.92598]
[1726502792706,0.91046119,2292.3,2292.1,4.36268]
[1726502793308,0.91046119,2292.3,2292.0,4.4012888]
[1726502793644,0.91046119,2292.2,2292.0,0.0383088]
[1726502793797,0.91046119,2292.2,2292.0,4.4012688]
[1726502794000,0.91046119,2292.2,2292.1,4.36281]
[1726502794553,0.91046119,2292.2,2292.0,0.0383088]
[1726502795339,0.91046119,2292.2,2292.0,4.4013088]
[1726502796229,0.91046119,2292.2,2292.1,4.36281]
[1726502796426,1.36569179,2292.2,2292.1,4.36281]
[1726502796746,0.91066467,2292.2,2292.0,8.7640788]
[1726502798209,0.91066467,2292.1,2292.0,4.4011788]
[1726502798747,1.31962852,2292.1,2292.0,0.0383088]
[1726502798946,1.77465564,2292.1,2292.0,0.0383088]
[1726502799240,4.68974585,2292.1,2292.0,0.0383088]
[1726502799453,5.97765985,2292.1,2292.0,0.0383088]
[1726502799973,4.24270524,2292.1,2292.0,0.0383088]
[1726502800613,4.24277777,2292.1,2292.0,0.0383088]
[1726502802219,1.77527777,2292.1,2292.0,0.0383088]
[1726502803353,2.22224585,2292.1,2292.0,0.0383088]
[1726502803567,3.51438879,2292.1,2292.0,0.0383088]
[1726502803910,1.70110679,2292.1,2292.0,0.24081345]
[1726502804226,2.22224585,2292.1,2292.0,0.24081345]
[1726502804467,3.51438879,2292.1,2292.0,0.24081345]
[1726502805160,3.51415866,2292.1,2292.0,0.24081345]
[1726502806185,1.70087666,2292.1,2292.0,0.24081345]
[1726502806991,1.7004658,2292.1,2292.0,0.24081345]
[1726502807359,2.22224585,2292.1,2292.0,0.24081345]
[1726502807560,3.5137478,2292.1,2292.0,0.24081345]
[1726502807790,1.36644721,2292.1,2292.0,0.24081345]
[1726502808098,3.10490729,2292.1,2292.0,0.24081345]
[1726502808508,10.46771729,2292.1,2292.0,0.24081345]
[1726502808672,14.83052729,2292.1,2292.0,0.24081345]
[1726502808866,17.56130539,2292.1,2292.0,0.24081345]
[1726502809114,10.83160593,2292.1,2292.0,0.24081345]
[1726502809309,10.83160593,2292.1,2292.0,0.0383088]
[1726502809672,10.83160593,2292.1,2292.0,0.24081345]
[1726502810313,12.91715583,2292.1,2292.0,0.24081345]
[1726502810510,10.83160593,2292.1,2292.0,0.24081345]
[1726502811309,10.3760298,2292.1,2292.0,0.24081345]
[1726502811483,8.55434583,2292.1,2292.0,0.24081345]
[1726502811686,10.37603948,2292.1,2292.0,0.24081345]
[1726502812221,10.83160593,2292.1,2292.0,0.24081345]
[1726502812583,6.56888539,2292.1,2292.0,0.24081345]
[1726502812793,4.36615143,2292.1,2292.0,0.24081345]
[1726502813477,3.10749464,2292.1,2292.0,0.24081345]
[1726502813684,6.10749464,2292.1,2292.0,0.24081345]
[1726502814007,6.10749464,2292.1,2292.0,0.0383088]
[1726502814172,12.27146835,2292.1,2292.0,0.0383088]
[1726502814374,16.61153296,2292.1,2292.0,0.0383088]
[1726502814677,20.97434296,2292.1,2292.0,0.24081345]
[1726502815011,20.97434296,2292.1,2292.0,0.0383088]
[1726502815012,18.24163084,2292.1,2292.0,0.0383088]
[1726502815218,23.06039167,2292.1,2292.0,0.0383088]
[1726502815370,26.24612933,2292.1,2292.0,0.00559483]
[1726502815569,26.24612933,2292.1,2292.0,0.00437618]
[1726502816390,18.69758167,2292.1,2292.0,0.00437618]
[1726502817796,23.06039167,2292.1,2292.0,0.00437618]
[1726502818982,18.69758167,2292.1,2292.0,0.00437618]
[1726502819456,21.42591835,2292.1,2292.0,0.00437618]
[1726502819608,18.69758167,2292.1,2292.0,0.00437618]
[1726502819817,18.69758167,2292.1,2292.0,0.20755812]
[1726502820483,18.69758167,2292.1,2292.0,0.00437618]
[1726502821422,21.42532997,2292.1,2292.0,0.20755812]
[1726502821584,21.42532997,2292.1,2292.0,0.00437618]
[1726502822087,21.42532997,2292.1,2292.0,0.20755812]
[1726502822395,18.69758167,2292.1,2292.0,0.00437618]
[1726502823133,21.4245677,2292.1,2292.0,0.00437618]
[1726502823340,21.42441637,2292.1,2292.0,0.00437618]
[1726502823844,5.28923424,2292.1,2292.0,0.20755812]
[1726502824005,4.01453062,2292.1,2292.0,0.20755812]
[1726502824204,3.55983654,2292.1,2292.0,0.20755812]
[1726502825342,6.55983654,2292.1,2292.0,0.20755812]
[1726502825634,11.37734062,2292.1,2292.0,0.20755812]
[1726502825833,7.01453062,2292.1,2292.0,0.20755812]
[1726502825998,6.55857979,2292.1,2292.0,0.20755812]
[1726502826203,3.10301538,2292.1,2292.0,4.57055812]
[1726502826400,0.90857262,2292.1,2292.0,11.98288993]